Cogmind - Beta 15 @@@ ROGUE MODE // 2025.09.22 @ 02:06:00 Player: Runagate Result: Destroyed by Y-45 Defender with Heavy Assault Rifle Performance ------------- Evolutions (2) 1000 Regions Visited (4) 800 Robots Destroyed (127) 635 Value Destroyed (3062) 3062 Prototype IDs (2) 40 Alien Tech Used (0) 0 Bonus (529) 529 TOTAL SCORE: 6066 Bonus ------- High Alert Combat Kills 55 Follower Combat Kills 474 Cogmind --------- Core Integrity 0/550 Matter 300/300 Energy 100/100 System Corruption 4% Temperature Cool (9) Movement Core (550) Ox10 Location -8/Storage Parts ------- > --- POWER (1) -------- (None) > --- PROPULSION (2) --- (None) > --- UTILITY (2) ------ Large Storage Unit > --- WEAPON (6) ------- Powered Hammer Chainsword Chainsword Chainsword > --- INVENTORY (15) --- Nuclear Core Nuclear Core Light Treads Light Treads Improved Treads High-capacity Matter Pod (200) Improved Medium Armor Plating High-powered Tractor Beam Improved Grenade Launcher Improved Grenade Launcher Hammer Heavy Flail Powered Hammer Scythe Chainsword Peak State ------------ > --- POWER ------------ Nuclear Core > --- PROPULSION ------- Light Treads Improved Treads > --- UTILITY ---------- Large Storage Unit Hardened Medium Armor Plating > --- WEAPON ----------- Powered Hammer Powered Hammer Powered Hammer Chainsword Chainsword Chainsword > --- INVENTORY -------- Light Deuterium Engine Nuclear Core Nuclear Core Light Treads Light Treads Improved Treads High-capacity Matter Pod Improved Medium Armor Plating High-powered Tractor Beam Improved Grenade Launcher Improved Grenade Launcher Hammer Powered Hammer Scythe Chainsword [Rating: 37] Favorites ----------- Power Nuclear Core Engine Cooled Ion Engine Power Core Nuclear Core Propulsion Improved Treads Treads Improved Treads Wheel Wheel Utility Large Storage Unit Device Tractor Beam Storage Large Storage Unit Protection Hardened Medium Armor Plating Weapon Powered Hammer Ballistic Gun Autogun Impact Weapon Powered Hammer Slashing Weapon Chainsword Build | -11 -10 -9 -8 -8 ------- Run | Yrd Mat Mat Mat Sto Slots Evolved 4 | . . 2 2 . Power . | . . . . . Propulsion . | . . . . . Utility . | . . . . . Weapon 4 | . . 2 2 . Parts Attached 68 | 6 9 30 17 6 Power 15 | 1 3 6 2 3 Engine 12 | 1 3 5 1 2 Core 3 | . . 1 1 1 Reactor . | . . . . . Propulsion 19 | 2 3 4 7 3 Treads 14 | . . 4 7 3 Leg . | . . . . . Wheel 5 | 2 3 . . . Hover . | . . . . . Flight . | . . . . . Utility 7 | 1 1 3 2 . Device 2 | . . 2 . . Storage 2 | 1 1 . . . Processor . | . . . . . Hackware . | . . . . . Protection 3 | . . 1 2 . Artifact . | . . . . . Weapon 27 | 2 2 17 6 . Energy Gun . | . . . . . Energy Cannon . | . . . . . Ballistic Gun 13 | 2 2 9 . . Ballistic Cannon . | . . . . . Launcher . | . . . . . Special Weapon . | . . . . . Impact Weapon 6 | . . 3 3 . Slashing Weapon 8 | . . 5 3 . Piercing Weapon . | . . . . . Special Melee Weapon . | . . . . . Unidentified Prototypes 2 | . . 2 . . Corrupted Parts 1 | . . . . 1 System Corruption 4 | . . . . 4 Parts Lost 11 | . . 1 3 7 Power 1 | . . . . 1 Propulsion 5 | . . . 2 3 Utility 2 | . . . 1 1 Weapon 3 | . . 1 . 2 Highest Loss Streak 6 | . . 1 2 6 To Critical Strikes . | . . . . . Average Backups 14 | 2 8 14 14 14 Power 3 | 1 2 3 3 2 Propulsion 2 | . 2 2 2 3 Utility 2 | . 1 2 3 3 Weapon 5 | . 2 5 6 6 Tool/Special . | . . . . . Unused Backups 18 | . 1 6 . 11 Power 4 | . . 2 . 2 Propulsion 1 | . 1 . . . Utility 4 | . . 1 . 3 Weapon 9 | . . 3 . 6 Tool/Special . | . . . . . Average Slot Usage (%) 97 | . 99 99 95 97 Engine 4 | . 14 6 . . Core 6 | . . 4 8 8 Treads 17 | . . 20 17 17 Wheel 2 | . 28 1 . . Device 3 | . . 9 . . Storage 11 | . 27 11 9 9 Protection 3 | . . 1 5 8 Ballistic Gun 17 | . 28 38 . . Impact Weapon 14 | . . 2 25 26 Slashing Weapon 16 | . . 3 28 27 Peak Build Rating 37 | 6 10 24 37 37 Average Rating 26 | 5 7 18 35 36 On Entrance 15 | . 6 10 24 37 Naked Turns . | . . . . . Heaviest Build 54 | 11 36 42 53 54 Greatest Support 46 | 20 20 46 46 43 Greatest Overweight (x) 13 | . 1 3 13 12 Average Overweight (x) . | . . . . 1 Largest Inventory Capacity 15 | 8 15 15 15 15 Average Capacity 14 | 7 14 15 15 15 Most Carried 15 | 6 15 15 15 15 Average Carried 14 | 2 8 14 14 14 Final Capacity 15 | 8 15 15 15 15 Final Carried 15 | 6 14 15 15 15 Class Distribution -------------------- 49% | Mutant 33% | Gunner 16% | Commander-Mutant Dominant Class ---------------- Mutant | -10/Materials Gunner | -9/Materials Mutant | -8/Materials Commander-Mutant | -8/Storage Resources | -11 -10 -9 -8 -8 ----------- Run | Yrd Mat Mat Mat Sto Matter Collected 2745 | 239 340 1757 250 159 Remotely 1681 | . . 1681 . . Salvage Created 4798 | 162 513 1949 1548 626 Parts 271 | 19 44 132 48 28 Haulers Intercepted 14 | . 1 5 3 5 Recyclers Shooed 5 | 1 . 3 . 1 Parts Field Recycled . | . . . . . Retrieved Matter . | . . . . . Parts Self-Destructed . | . . . . . Prevented . | . . . . . Kills | -11 -10 -9 -8 -8 ------- Run | Yrd Mat Mat Mat Sto Combat Hostiles Destroyed 76 | . 14 32 24 6 Melee 21 | . . 1 17 3 Guns 45 | . 14 31 . . Classes Destroyed 14 | 2 5 5 . 2 Worker 10 | . 1 . 7 2 Builder 1 | . . 1 . . Tunneler 7 | 5 . 2 . . Hauler 14 | . 1 5 3 5 Recycler 8 | 1 . 4 2 1 Mechanic 1 | . . . . 1 Operator 2 | . . 1 1 . Watcher 8 | . 2 4 2 . Swarmer 15 | . 6 6 3 . Grunt 42 | . 8 16 17 1 Brawler 1 | . . 1 . . Duelist 1 | . . 1 . . Protector 1 | . . . . 1 Sentry 16 | . . 8 4 4 Best Kill Streak 7 | 4 4 6 7 3 Combat Bots Only 5 | . 4 3 5 2 Max Kills in Single Turn 3 | 1 1 3 1 1 Gunslinging 2 | . . 2 . . Exploded . | . . . . . Melee 1 | . . 1 1 1 Uniques/NPCs Destroyed . | . . . . . Combat | -11 -10 -9 -8 -8 -------- Run | Yrd Mat Mat Mat Sto Hostile Shots Fired 355 | . 43 94 135 83 Missed 95 | . 11 26 37 21 Hits 260 | . 32 68 98 62 Melee 2 | . . . . 2 Projectile 258 | . 32 68 98 60 AOE 6 | . . . . 6 Critical Strikes 9 | . . 3 5 1 Damage Taken 3886 | . 288 811 1473 1314 Core 761 | . 84 118 184 375 Absorbed by Shields . | . . . . . Core Remaining (%) 78 | 100 66 70 . . Volleys Fired 138 | 11 46 81 . . Largest 4 | 2 2 4 . . Hottest 92 | 40 40 92 . . Shots Fired 433 | 22 92 319 . . Gun 433 | 22 92 319 . . Cannon . | . . . . . Launcher . | . . . . . Special . | . . . . . Kinetic 433 | 22 92 319 . . Thermal . | . . . . . Explosive . | . . . . . Electromagnetic . | . . . . . Robot Hit Streak 16 | 15 16 13 . . Robot Miss Streak 8 | 2 7 8 . . Penetration Max . | . . . . . Secondary Targets 12 | . 2 10 . . Max Gunslinging Chain 2 | . 1 2 . . Shots Hit Robots 396 | 15 53 180 107 41 Core Hits 134 | 7 28 66 26 7 Critical Kills 4 | . 1 1 2 . Critical Parts Destroyed 17 | . . 2 11 4 Critical Strikes 25 | . 1 3 16 5 Destroy 4 | . 1 3 . . Smash 17 | . . . 13 4 Sever 4 | . . . 3 1 Melee Attacks 221 | . . 15 146 60 Impact 141 | . . 6 91 44 Slashing 80 | . . 9 55 16 Piercing . | . . . . . Sneak Attacks 33 | . . 2 19 12 Combat Hostiles 2 | . . . 2 . Follow-up Attacks 76 | . . 6 50 20 Damage Inflicted 10447 | 176 616 2892 4697 2066 Guns 3360 | 176 616 2568 . . Cannons . | . . . . . Explosions . | . . . . . Melee 7076 | . . 314 4697 2065 Ramming 11 | . . 10 . 1 Kinetic 3360 | 176 616 2568 . . Thermal . | . . . . . Explosive . | . . . . . Electromagnetic . | . . . . . Impact 5054 | . . 101 3321 1632 Slashing 2022 | . . 213 1376 433 Piercing . | . . . . . Highest Corruption 4 | . . . . 4 Average Corruption 4 | . . . . 4 Corruption Purged . | . . . . . Corruption Blocked . | . . . . . Effects 25 | . . . . 25 Message Errors 3 | . . . . 3 Matter Fused 10 | . . . . 10 Heat Flow Errors 7 | . . . . 7 Energy Discharges 2 | . . . . 2 Data Loss (minor) 2 | . . . . 2 Data Loss (major) 1 | . . . . 1 Overload Shots . | . . . . . Overflow Damage 1529 | . . 68 824 637 Projectiles . | . . . . . Explosions . | . . . . . Melee 1529 | . . 68 824 637 Knockbacks 10 | . . . 8 2 Impact 10 | . . . 8 2 Kinetic . | . . . . . Secondary . | . . . . . Self-Inflicted Damage . | . . . . . Shots . | . . . . . Rammed 3 | . . 2 . 1 Targets Rammed 3 | . . 2 . 1 Kicked . | . . . . . Crushed . | . . . . . Highest Temperature 211 | . 12 198 11 211 Average Temperature 57 | . 6 53 9 88 Received Heat Transfer 1557 | . 78 390 684 405 Siege Activations . | . . . . . Martial Activations . | . . . . . Shielding Activations . | . . . . . Robots Disrupted . | . . . . . Combat Hostiles . | . . . . . Robots Corrupted 15 | . . . 9 6 Combat Hostiles 10 | . . . 7 3 Parts Fried 27 | . . . 20 7 Impact Corruptions 53 | . . 1 32 20 Robots Melted . | . . . . . Combat Hostiles . | . . . . . Parts Melted . | . . . . . Heat Transferred . | . . . . . Parts Sabotaged . | . . . . . Parts Stolen . | . . . . . Parts Stripped . | . . . . . Power Chain Reactions . | . . . . . Alert | -11 -10 -9 -8 -8 ------- Run | Yrd Mat Mat Mat Sto Maximum Alert Level 3 | . 1 2 2 3 Low Security (%) 23 | 100 66 24 14 15 Level 1 52 | . 33 63 69 17 Level 2 20 | . . 12 15 51 Level 3 3 | . . . . 16 Level 4 . | . . . . . Level 5 . | . . . . . High Security . | . . . . . Max Security . | . . . . . Peak Influence 727 | 20 267 445 505 727 Initial 209 | . 6 97 177 209 Average 301 | 4 109 253 302 483 Influence Increases 3346 | 30 386 988 965 977 Destroy 0b10 Robot/C 1820 | . 280 640 480 420 Destroy 0b10 Robot/NC 280 | 30 20 85 75 70 Destroy Leader 478 | . 56 178 110 134 Allied During Kill 331 | . . . . 331 Successful Hack 15 | . . 8 . 7 Disable Machine 75 | . . 60 . 15 Destroy Structure 2 | . . 2 . . Lose Combat Pursuer 345 | . 30 15 300 . Influence Decreases 2920 | 20 164 799 888 1049 Entered New Map 672 | . 4 135 244 289 Time Decay 1938 | 20 160 654 614 490 Lost Part 110 | . . 10 30 70 Lost Ally 200 | . . . . 200 Squads Dispatched 12 | . 3 2 4 3 Investigation 4 | . 2 1 . 1 Extermination . | . . . . . Reinforcement 5 | . 1 1 3 . Assault 2 | . . . 1 1 Garrison 1 | . . . . 1 Intercept . | . . . . . Searches Triggered . | . . . . . Construction Impeded . | . . . . . Haulers Reinforced . | . . . . . Active Scanning Responses . | . . . . . Cargo Convoy Interrupts . | . . . . . Stealth | -11 -10 -9 -8 -8 --------- Run | Yrd Mat Mat Mat Sto Distress Signals 10 | . . 3 4 3 Communications Jammed . | . . . . . Distress Signals . | . . . . . Times Spotted 142 | . 17 42 52 31 Peak Tracking Total 6 | . 3 6 6 6 Tactical Retreats 19 | . 2 1 16 . Traps | -11 -10 -9 -8 -8 ------- Run | Yrd Mat Mat Mat Sto Traps Triggered 8 | . 2 4 2 . Indirectly . | . . . . . Trap Hack Attempts . | . . . . . Triggered . | . . . . . Disarmed . | . . . . . Reprogrammed . | . . . . . Reused . | . . . . . Traps Extracted . | . . . . . Installed . | . . . . . Triggered . | . . . . . Machines | -11 -10 -9 -8 -8 ---------- Run | Yrd Mat Mat Mat Sto Machines Disabled 5 | . . 4 . 1 Max in Single Turn 1 | . . 1 . 1 Machines Repaired . | . . . . . Machines Dismantled . | . . . . . Machines Sabotaged . | . . . . . Overloaded Fab Kills . | . . . . . Hacking | -11 -10 -9 -8 -8 --------- Run | Yrd Mat Mat Mat Sto Machines Accessed 5 | . 2 1 . 2 Terminals 5 | . 2 1 . 2 Fabricators . | . . . . . Repair Stations . | . . . . . Recycling Units . | . . . . . Scanalyzers . | . . . . . Garrison Access . | . . . . . Total Hacks 10 | . 5 1 . 4 Successful 3 | . 1 1 . 1 Failed 7 | . 4 . . 3 Catastrophic 2 | . 1 . . 1 Database Lockouts . | . . . . . Manual 5 | . 4 1 . . Terminals 10 | . 5 1 . 4 Fabricators . | . . . . . Repair Stations . | . . . . . Recycling Units . | . . . . . Scanalyzers . | . . . . . Garrison Access . | . . . . . Terminal Hacks 3 | . 1 1 . 1 Open Door 1 | . . . . 1 Registered Components 2 | . 1 1 . . Fabricator Hacks . | . . . . . Repair Station Hacks . | . . . . . Recycling Unit Hacks . | . . . . . Scanalyzer . | . . . . . Garrison Access Hacks . | . . . . . Unauthorized Hacks . | . . . . . Terminals . | . . . . . Fabricators . | . . . . . Repair Stations . | . . . . . Recycling Units . | . . . . . Scanalyzers . | . . . . . Garrison Access . | . . . . . Data Cores Recovered 2 | . . 1 . 1 Used . | . . . . . Hacking Detections 4 | . 2 . . 2 Full Trace Events 1 | . . . . 1 Feedback Events . | . . . . . Feedback Blocked . | . . . . . Robot Schematics Acquired . | . . . . . Robots Built . | . . . . . Authchips . | . . . . . Time . | . . . . . Total Robot Build Rating . | . . . . . Part Schematics Acquired . | . . . . . Parts Built . | . . . . . Authchips . | . . . . . Time . | . . . . . Total Part Build Rating . | . . . . . Parts Repaired . | . . . . . Time . | . . . . . Parts Recycled . | . . . . . Recycled Matter . | . . . . . Retrieved Matter . | . . . . . Retrieved Components . | . . . . . Parts Scanalyzed . | . . . . . Part Schematics Acquired . | . . . . . Parts Damaged . | . . . . . Bothacking | -11 -10 -9 -8 -8 ------------ Run | Yrd Mat Mat Mat Sto Used RIF Installer . | . . . . . Robots Hacked . | . . . . . Non-combat . | . . . . . Combat . | . . . . . Robot Hacks Applied . | . . . . . Relay Couplers Released . | . . . . . Fabnet Peak Effective % . | . . . . . Robots Rewired . | . . . . . Allies Hacked . | . . . . . Hacks Repelled . | . . . . . Allies | -11 -10 -9 -8 -8 -------- Run | Yrd Mat Mat Mat Sto Total Allies 10 | . . . . 10 Largest Group 10 | . . . . 10 Highest-Rated Group 173 | . . . . 173 Highest-Rated Ally 29 | . . . . 29 Total Orders . | . . . . . Ally Attacks 155 | . . . . 155 Total Damage 1910 | . . . . 1910 Kills 20 | . . . . 20 Allies Corrupted . | . . . . . Allies Melted . | . . . . . Intel | -11 -10 -9 -8 -8 ------- Run | Yrd Mat Mat Mat Sto Active Infowar (turns) . | . . . . . Robot Analysis Total . | . . . . . Derelict Logs Recovered . | . . . . . Drone Launches . | . . . . . Drone Recoveries . | . . . . . Exploration | -11 -10 -9 -8 -8 ------------- Run | Yrd Mat Mat Mat Sto Turns Passed 6326 | 90 489 2431 2032 1284 Spaces Moved 2836 | 57 305 1281 723 470 Core 10 | 3 . . 1 6 Treads 2401 | . . 1215 722 464 Legs . | . . . . . Wheels 425 | 54 305 66 . . Hover . | . . . . . Flight . | . . . . . Fastest Speed 50 | 50 80 95 160 240 Average Speed 178 | 78 94 157 213 245 Slowest Speed 700 | 80 95 240 700 650 Overloaded Moves . | . . . . . Propulsion Burnouts . | . . . . . Robots Hopped . | . . . . . Potential Cave-ins . | . . . . . Cave-ins Triggered . | . . . . . Exploration Rate (%) 50 | 4 37 93 53 64 Regions Visited 4 Branch Regions 1 Pre-discovered Areas . | . . . . . Known Exits Taken . | . . . . . Unknown Exits Taken 4 | 1 1 1 1 . Scrap Searched . | . . . . . Spaces Dug . | . . . . . Terrain Destroyed . | . . . . . Melee . | . . . . . Projectile . | . . . . . AOE . | . . . . . Terrain Rammed . | . . . . . Walls Destroyed . | . . . . . Machines Disabled . | . . . . . Actions | -11 -10 -9 -8 -8 --------- Run | Yrd Mat Mat Mat Sto Total 3616 | 79 420 1523 1061 533 Wait 353 | . 52 60 222 19 Move 2832 | 56 304 1280 722 470 Hop . | . . . . . Pick Up 39 | 6 6 19 7 1 Fast Attach 21 | 6 1 7 6 1 Attach 4 | . . 2 1 1 Detach 1 | . . 1 . . Swap 58 | . 8 32 12 6 Drop 51 | . 3 31 13 4 Fire 138 | 11 46 81 . . Melee 116 | . . 8 78 30 Ram 1 | . . . . 1 Kick . | . . . . . Crush 2 | . . 2 . . Escape Stasis . | . . . . . Rewire . | . . . . . Trap . | . . . . . Miscellaneous . | . . . . . Route ------- -11/Scrapyard -10/Materials -9/Materials (discovered 4 exits: [*Mat x3] / [*Min]) -8/Materials (discovered 2 exits: [*Fac] / *Sto) -8/Storage History --------- Turn | Location | Event 3 | -11/Scrapyard | Discovered new exit (range 16) 91 | -11/Scrapyard | Entered Materials 311 | -10/Materials | Build established: Mutant 500 | -10/Materials | Discovered new exit (range 12) 580 | -10/Materials | Entered another Materials area 580 | -9/Materials | Evolved 2 slots: Weapon x2 891 | -9/Materials | Build established: Gunner 929 | -9/Materials | Discovered new exit (range 4) 1400 | -9/Materials | Discovered new exit (range 16) 1696 | -9/Materials | Discovered new exit (range 5) 2368 | -9/Materials | Discovered new exit (range 8) 3011 | -9/Materials | Entered another Materials area 3011 | -8/Materials | Evolved 2 slots: Weapon x2 3063 | -8/Materials | Build established: Mutant 4529 | -8/Materials | Discovered new exit (range 15) 4670 | -8/Materials | Discovered new exit (range 15) 5011 | -8/Materials | First assault squad dispatched 5043 | -8/Materials | Entered Storage 5227 | -8/Storage | Assisted by bots powering up and referring to "LRC-V3" 5563 | -8/Storage | Build established: Commander-Mutant 5745 | -8/Storage | Core integrity fell below 50% 6243 | -8/Storage | First assault squad dispatched 6271 | -8/Storage | Garrison activated, responded to threat 6288 | -8/Storage | Core integrity fell below 20% 6324 | -8/Storage | Lost 10 allies 6327 | -8/Storage | Lost 6 parts (1p2n1u2w) 6327 | -8/Storage | Destroyed by Y-45 Defender with Heavy Assault Rifle Last Messages --------------- 06315_ K-01 Serf collects debris. 06315_ U-05 Engineer lays Concrete. 06315_ R-06 Scavenger collects Com. Wheel. 06316_ U-05 Engineer lays Concrete. 06318_ R-06 Scavenger destroyed. 06319_ U-05 Engineer lays Concrete. 06319_ K-01 Serf collects debris. 06320_ U-05 Engineer lays Concrete. 06320_ R-06 Scavenger inserts Imp. Heat Sink into recycling unit. 06321_ U-05 Engineer lays Concrete. 06323_ K-01 Serf collects debris. 06323_ R-06 Scavenger inserts Com. Battery into recycling unit. 06324_ Recycling unit begins recycling process. 06324_ U-05 Engineer builds a Wall. 06325_ Recycling unit begins matter transfer process. 06326_ R-06 Scavenger inserts Lgt. Angular Momentum Engine into recycling unit. Map ----- +----------------------------------------------------+ | | | | | | | | | | | | | | | | | | | | | | | | | | | ?????????????????????????????????????????????????? | | ?????????????????????????????????????????????????? | | ?????????????????????????????????????????????????? | | ?????????????????????????????????????????????????? | | ?????????#####################???????????????????? | | ?????? ^^ ^^ #???????????????????? | | ?????? ^^ ^^ #???????????????????? | | ?????? ^^ ^^ % #???????????????????? | | ?????????#################%% #???????????????????? | | ?????????????###T####### # k*###?????#???????????? | | ?????????????# # %!# ##????# ?""""""???? | | ????????????## """ #u%%= ##???# ?"[%! "?### | | ??????????#""" "Y" @u!%# #???# "!!*]" + | | ??????????#"G r !* Y ==# ##???# "" """ ### | | ???????????""" ** =## #???# #?? | | ???????????### *| # % # ##???# ### | | ?????????????# # #???# % ## | | ?????????????####"T"#### ##???#####+###### | | ????????????????#"""???# #########% #??# | | ????????????????###????## %% #??# | | ????????????????????????# T% % #### | | ????????????????????????# % % # | | ????????????????????????# ########## % # | | ????????????????????????####### ##### ## | | ??????????????????????????????# #???# | | ??????????????????????????????#""" [#???# | | ??????????????????????????????#""" * ##### | | ??????????????????????????????#""" + | | ??????????????????????????????#""" # ## | | ??????????????????????????????#""" # #? | | ??????????????????????????????# + #? | | ??????????????????????????????# # #? | | ?????????????????????????????######+####^^ ^ *## | | ?????????????????????????????# ^ ^^ | | ?????????????????????????????# % | | ?????????????????????????????# | | ?????????????????????????????################+###+ | +----------------------------------------------------+ Best States ------------- Heat Dissipation 31 Energy Generation 14 Energy Capacity 280 Matter Stores 300 Matter Capacity 300 Sight Range 16 Terrain Scan Density 10 Armor Coverage 225 Evasion (%) 44 Recoil Reduction 2 Item Schematics ----------------- None Robot Schematics ------------------ None Fabricated ------------ Nothing Repaired ---------- Nothing Alien Tech Used ----------------- None Achievements -------------- None Challenges ------------ None Game ------ Seed PhaseThiefDrive Manual? 0 Play Time 00:32:27 Cumulative 86.8 hours Start 2025.09.22 @ 01:38:44 End 2025.09.22 @ 02:06:00 Sessions 1 Manual Loads 0 Difficulty Rogue Special Mode None Game No. 184 Rogue 182 Adventurer 0 Explorer 2 Win Type - Total 0 Types 0/0/0/0/0/0/0/0/0/0 Lore% 30 Gallery% 46 Achievement% 41 Wizard Run 0 Options --------- Layout 2 ASCII 0 Keyboard 1 Movement Arrows Keybinds 0 Fullscreen 1 Font 28/SmallcapsGlow Map View 50x49 Zoom Use 0% Tactical HUD 1 Map Filters NONE Filters NONE Steam 1 RUN: 738d1649-8b28-4984-a150-c3e7088ff0a8